Workbook

Sheet Sheet1
A1: 产服公司2022年第一批物业租金减免审核结果
A2: 填报单位:
A3: 序号 | B3: 业主方 | C3: 物业名称 | D3: 承租人基本情况
D4: 承租人名称 | E4: 行业类别 | F4: 企业规模 | G4: 是否为减免对象 | H4: 是否存在 转租行为 | I4: 提交资料日期 | J4: 是否审核通过 | K4: 减免面积 | L4: 减免期限（*月*日-*月*日） | M4: 减免金额（元）
A5: 1 | B5: 深圳市坪山区产业投资服务有限公司 | C5: 坪山创新广场 | D5: 深圳市旭泰环保工程有限公司 | E5: 制造业（其他未列明制造业） | F5: 微型企业 | G5: 是 | H5: 否 | I5: 2022-04-20 | J5: 是 | K5: 118.94 | L5: 3月1日-8月31日 | M5: =6494.12*3+6494.12*3/2 -> 29,223.54
A6: 2 | B6: 深圳市坪山区产业投资服务有限公司 | C6: 坪山创新广场 | D6: 锐捷创新科技（深圳）有限公司 | E6: 服务业（零售业） | F6: 微型企业 | G6: 是 | H6: 否 | I6: 2022-04-20 | J6: 是 | K6: 50.01 | L6: 3月1日-8月31日 | M6: 12,641.30
A7: 3 | B7: 深圳市坪山区产业投资服务有限公司 | C7: 坪山创新广场 | D7: 深圳兆恩医疗科技有限公司 | E7: 服务业（批发业） | F7: 微型企业 | G7: 是 | H7: 否 | I7: 2022-04-20 | J7: 是 | K7: 50.01 | L7: 3月1日-8月31日 | M7: 12,641.30
A8: 4 | B8: 深圳市坪山区产业投资服务有限公司 | C8: 坪山创新广场 | D8: 深圳市南鼎国际货运代理有限公司 | E8: 服务业（交通运输、仓储和邮政业） | F8: 小型企业 | G8: 是 | H8: 否 | I8: 2022-04-20 | J8: 是 | K8: 115.53 | L8: 3月1日-8月31日 | M8: =6065.33*3+6065.33*3/2 -> 27,293.99
A9: 5 | B9: 深圳市坪山区产业投资服务有限公司 | C9: 坪山创新广场 | D9: 深圳市漠北能源科技有限公司 | E9: 服务业（其他未列明行业） | F9: 微型企业 | G9: 是 | H9: 否 | I9: 2022-04-20 | J9: 是 | K9: 116.9 | L9: 3月3日-9月2日 | M9: =5845*3+5845*3/2 -> 26,302.50
A10: 6 | B10: 深圳市坪山区产业投资服务有限公司 | C10: 坪山创新广场 | D10: 深圳市朗博生物医药股份有限公司 | E10: 服务业（批发业） | F10: 中型企业 | G10: 否 | H10: 否 | I10: 2022-04-20 | J10: 否 | K10: 0 | M10: 0.00
A11: 7 | B11: 深圳市坪山区产业投资服务有限公司 | C11: 坪山创新广场 | D11: 深圳市幸运之神科技有限公司 | E11: 服务业（批发业） | F11: 微型企业 | G11: 是 | H11: 否 | I11: 2022-04-20 | J11: 是 | K11: 107.73 | L11: 3月1日-8月31日 | M11: =5494.23*3+5494.23*3/2 -> 24,724.04
A12: 8 | B12: 深圳市坪山区产业投资服务有限公司 | C12: 坪山创新广场 | D12: 深圳市铭九科技有限公司 | E12: 服务业（软件和信息技术服务业） | F12: 微型企业 | G12: 是 | H12: 否 | I12: 2022-04-20 | J12: 是 | K12: 62.86 | L12: 3月1日-8月31日 | M12: 15,126.00
A13: 9 | B13: 深圳市坪山区产业投资服务有限公司 | C13: 坪山创新广场 | D13: 深圳逆光健康管理有限公司 | E13: 服务业（零售业） | F13: 微型企业 | G13: 是 | H13: 否 | I13: 2022-04-20 | J13: 是 | K13: 256.27 | L13: 3月1日-8月31日 | M13: =12813.5*3+12813.5/2+(12813.5/31*11+12813.5*1.05/31*20)/2+12813.5*1.05/2 -> 58,187.76
A14: 10 | B14: 深圳市坪山区产业投资服务有限公司 | C14: 坪山创新广场 | D14: 深圳宏盛达建筑劳务有限公司 | E14: 建筑业（建筑装饰、装修和其他建筑业） | F14: 微型企业 | G14: 否 | H14: 否 | I14: 2022-04-20 | J14: 否 | K14: 0 | M14: 0.00
A15: 11 | B15: 深圳市坪山区产业投资服务有限公司 | C15: 坪山创新广场 | D15: 深圳市华澄实业有限公司 | E15: 服务业（批发业） | F15: 微型企业 | G15: 是 | H15: 否 | I15: 2022-04-20 | J15: 是 | K15: 91.14 | L15: 6月7日-12月6日 | M15: =4830.42*3+4830.42*3/2 -> 21,736.89
A16: =A15+1 -> 12 | B16: 深圳市坪山区产业投资服务有限公司 | C16: 坪山创新广场 | D16: 深圳市思博达包装制品有限公司 | E16: 服务业（零售业） | F16: 微型企业 | G16: 是 | H16: 否 | I16: 2022-04-20 | J16: 是 | K16: 149.55 | L16: 3月1日-8月31日 | M16: =2803.07*3+2803.07*3/2+5606.13*3+5606.13*3/2 -> 37,841.40
A17: 13 | B17: 深圳市坪山区产业投资服务有限公司 | C17: 坪山创新广场 | D17: 深圳思博达创意产业集团有限公司 | E17: 服务业（零售业） | F17: 微型企业 | G17: 是 | H17: 否 | I17: 2022-04-20 | J17: 是 | K17: 58.46 | L17: 3月1日-8月31日 | M17: =3148.35+3098.38*1.05*2+3098.38*1.05*3/2 -> 14,534.90
A18: 14 | B18: 深圳市坪山区产业投资服务有限公司 | C18: 坪山创新广场 | D18: 深圳众维勘测工程服务有限公司 | E18: 服务业（专业技术服务业） | F18: 微型企业 | G18: 是 | H18: 否 | I18: 2022-04-20 | J18: 是 | K18: 59.87 | L18: 3月11日-9月10日 | M18: =2993.5*3+2993.5*3/2 -> 13,470.75
A19: 15 | B19: 深圳市坪山区产业投资服务有限公司 | C19: 坪山创新广场 | D19: 深圳市谷奇创新科技有限公司 | E19: 服务业（软件和信息技术服务业） | F19: 小型企业 | G19: 是 | H19: 否 | I19: 2022-04-20 | J19: 是 | K19: 173.98 | L19: 3月3日-9月2日 | M19: =8699*3+8699*3/2 -> 39,145.50
A20: 16 | B20: 深圳市坪山区产业投资服务有限公司 | C20: 坪山创新广场 | D20: 深圳市德载物流有限公司 | E20: 服务业（交通运输业） | F20: 微型企业 | G20: 是 | H20: 否 | I20: 2022-04-20 | J20: 是 | K20: 116.92 | L20: 3月1日-8月31日 | M20: 28,275.90
A21: 17 | B21: 深圳市坪山区产业投资服务有限公司 | C21: 坪山创新广场 | D21: 深圳市神锜科技有限公司 | E21: 服务业（零售业） | F21: 微型企业 | G21: 是 | H21: 否 | I21: 2022-04-20 | J21: 是 | K21: 53.96 | L21: 4月12日-10月11日 | M21: =2751.96*3+2751.96*3/2 -> 12,383.82
A22: 18 | B22: 深圳市坪山区产业投资服务有限公司 | C22: 坪山创新广场 | D22: 深圳市广驰投资发展有限公司 | E22: 服务业（房地产业） | F22: 小型企业 | G22: 是 | H22: 否 | I22: 2022-04-20 | J22: 是 | K22: 177.70 | L22: 3月1日-8月31日 | M22: =9702.42*3+9702.42*3/2 -> 43,660.89
A23: 19 | B23: 深圳市坪山区产业投资服务有限公司 | C23: 坪山创新广场 | D23: 深圳联辰芯半导体有限公司 | E23: 服务业（批发业） | F23: 微型企业 | G23: 是 | H23: 否 | I23: 2022-04-20 | J23: 是 | K23: 53.96 | L23: 3月1日-8月31日 | M23: =2751.96*3+2751.96*3/2 -> 12,383.82
A24: 20 | B24: 深圳市坪山区产业投资服务有限公司 | C24: 坪山创新广场 | D24: 睿霖数字技术（深圳）有限公司 | E24: 服务业（其他未列明行业） | F24: 小型企业 | G24: 是 | H24: 否 | I24: 2022-04-20 | J24: 是 | K24: 316.32 | L24: 3月1日-8月31日 | M24: =(6574.41+10677.87)*3+(6574.41+10677.87)*3/2 -> 77,635.26
A25: 21 | B25: 深圳市坪山区产业投资服务有限公司 | C25: 坪山创新广场 | D25: 广东德布律师事务所 | E25: 服务业（租赁和商务服务业） | F25: 小型企业 | G25: 是 | H25: 否 | I25: 2022-04-20 | J25: 是 | K25: 247.53 | L25: 3月1日-8月31日 | M25: =13918.61*3+13918.61*3/2 -> 62,633.75
A26: 22 | B26: 深圳市坪山区产业投资服务有限公司 | C26: 坪山创新广场 | D26: 深圳市创赏设计有限公司 | E26: 服务业（其他未列明行业） | F26: 微型企业 | G26: 是 | H26: 否 | I26: 2022-04-20 | J26: 是 | K26: 50.10 | L26: 3月1日-8月31日 | M26: =2735.46*3+2735.46*3/2 -> 12,309.57
